[Event "Titled Tuesday Blitz March 08 Late 2022"]
[White "Silva, Miguel Antonio Neto"]
[Black "Kozina, Anastasia"]
[WhiteFideId "1911929"]
[BlackFideId "24174017"]
[WhiteElo "2204"]
[BlackElo "1993"]
[Result "1-0"]
[Round "09"]
[TimeControl "180+1"]
[Date "2022.03.09"]
[WhiteClock "0:00:21"]
[BlackClock "0:00:03"]

1. Nf3 {[%clk 0:02:53]}  e6 {[%clk 0:03:00]} 2. c4 {[%clk 0:02:52]}  Nf6 {[%clk 0:02:59]} 3. d4 {[%clk 0:02:52]}  Bb4+ {[%clk 0:02:57]} 4. Nbd2 {[%clk 0:02:51]}  O-O {[%clk 0:02:56]} 5. a3 {[%clk 0:02:49]}  Be7 {[%clk 0:02:55]} 6. g3 {[%clk 0:02:49]}  d6 {[%clk 0:02:51]} 7. Bg2 {[%clk 0:02:49]}  Nc6 {[%clk 0:02:42]} 8. O-O {[%clk 0:02:48]}  e5 {[%clk 0:02:42]} 9. d5 {[%clk 0:02:47]}  Nb8 {[%clk 0:02:42]} 10. e4 {[%clk 0:02:45]}  Nbd7 {[%clk 0:02:41]} 11. Ne1 {[%clk 0:02:45]}  a5 {[%clk 0:02:38]} 12. Nd3 {[%clk 0:02:44]}  b6 {[%clk 0:02:36]} 13. b3 {[%clk 0:02:40]}  Ba6 {[%clk 0:02:30]} 14. Bb2 {[%clk 0:02:34]}  Rb8 {[%clk 0:02:24]} 15. Qc2 {[%clk 0:02:34]}  Nc5 {[%clk 0:02:13]} 16. b4 {[%clk 0:02:23]}  Nxd3 {[%clk 0:02:06]} 17. Qxd3 {[%clk 0:02:24]}  axb4 {[%clk 0:02:05]} 18. axb4 {[%clk 0:02:23]}  Ra8 {[%clk 0:02:05]} 19. Nb3 {[%clk 0:02:06]}  Qd7 {[%clk 0:01:55]} 20. Rfc1 {[%clk 0:01:58]}  Rfb8 {[%clk 0:01:28]} 21. h3 {[%clk 0:01:51]}  Bc8 {[%clk 0:01:18]} 22. Rxa8 {[%clk 0:01:36]}  Rxa8 {[%clk 0:01:18]} 23. c5 {[%clk 0:01:33]}  bxc5 {[%clk 0:01:11]} 24. bxc5 {[%clk 0:01:33]}  Ba6 {[%clk 0:01:10]} 25. Qc2 {[%clk 0:01:22]}  Qb5 {[%clk 0:01:01]} 26. Bf1 {[%clk 0:01:13]}  Qb4 {[%clk 0:00:57]} 27. Ra1 {[%clk 0:00:48]}  Bb7 {[%clk 0:00:46]} 28. Rxa8+ {[%clk 0:00:46]}  Bxa8 {[%clk 0:00:47]} 29. cxd6 {[%clk 0:00:46]}  Bxd6 {[%clk 0:00:45]} 30. Bd3 {[%clk 0:00:43]}  Bb7 {[%clk 0:00:36]} 31. Bc3 {[%clk 0:00:43]}  Qa4 {[%clk 0:00:32]} 32. Na5 {[%clk 0:00:41]}  Qxc2 {[%clk 0:00:26]} 33. Bxc2 {[%clk 0:00:41]}  Bc8 {[%clk 0:00:25]} 34. Nc6 {[%clk 0:00:40]}  Bxh3 {[%clk 0:00:23]} 35. Nxe5 {[%clk 0:00:39]}  Kf8 {[%clk 0:00:18]} 36. Nc4 {[%clk 0:00:38]}  Bc8 {[%clk 0:00:17]} 37. f4 {[%clk 0:00:31]}  Bc5+ {[%clk 0:00:17]} 38. Kg2 {[%clk 0:00:31]}  Ng4 {[%clk 0:00:17]} 39. Bd1 {[%clk 0:00:24]}  h5 {[%clk 0:00:16]} 40. Bxg4 {[%clk 0:00:17]}  Bxg4 {[%clk 0:00:15]} 41. Ne5 {[%clk 0:00:18]}  Bd1 {[%clk 0:00:14]} 42. Nd7+ {[%clk 0:00:18]}  Ke7 {[%clk 0:00:14]} 43. Nxc5 {[%clk 0:00:19]}  Bc2 {[%clk 0:00:14]} 44. Kf3 {[%clk 0:00:18]}  Kd6 {[%clk 0:00:15]} 45. Bb4 {[%clk 0:00:18]}  Bd1+ {[%clk 0:00:10]} 46. Ke3 {[%clk 0:00:18]}  Ke7 {[%clk 0:00:11]} 47. Nd3+ {[%clk 0:00:18]}  Kd7 {[%clk 0:00:10]} 48. Nf2 {[%clk 0:00:19]}  Bb3 {[%clk 0:00:10]} 49. Kd4 {[%clk 0:00:19]}  Ba2 {[%clk 0:00:09]} 50. e5 {[%clk 0:00:19]}  Bb1 {[%clk 0:00:08]} 51. Ne4 {[%clk 0:00:19]}  Bc2 {[%clk 0:00:07]} 52. Bf8 {[%clk 0:00:19]}  g6 {[%clk 0:00:07]} 53. Bh6 {[%clk 0:00:19]}  Bb3 {[%clk 0:00:07]} 54. Bg5 {[%clk 0:00:19]}  Bc2 {[%clk 0:00:07]} 55. Bh4 {[%clk 0:00:19]}  Bd1 {[%clk 0:00:07]} 56. Nc5+ {[%clk 0:00:20]}  Kc8 {[%clk 0:00:06]} 57. d6 {[%clk 0:00:20]}  cxd6 {[%clk 0:00:05]} 58. exd6 {[%clk 0:00:21]}  Bg4 {[%clk 0:00:05]} 59. Kd5 {[%clk 0:00:21]}  Bf3+ {[%clk 0:00:03]} 60. Ke5 {[%clk 0:00:21]}  Bg4 {[%clk 0:00:04]} 61. Kf6 {[%clk 0:00:21]}  Kd8 {[%clk 0:00:03]} 62. Kxf7+ {[%clk 0:00:21]}  Kc8 {[%clk 0:00:03]} 63. Kxg6 {[%clk 0:00:21]}  Bf3 {[%clk 0:00:03]} 64. f5 {[%clk 0:00:21]} 1-0


[Site "https://www.chess.com"]

[Event "Titled Tuesday Blitz March 08 Late 2022"]
[White "Sliwicki, Damian"]
[Black "Antonio, Jorge Carlos"]
[WhiteFideId "1127128"]
[BlackFideId "113190"]
[WhiteElo "2067"]
[BlackElo "2247"]
[Result "1-0"]
[Round "09"]
[TimeControl "180+1"]
[Date "2022.03.09"]
[WhiteClock "0:00:11"]
[BlackClock "0:00:54"]

1. e4 {[%clk 0:02:50]}  c5 {[%clk 0:02:58]} 2. Nf3 {[%clk 0:02:44]}  e6 {[%clk 0:02:58]} 3. d4 {[%clk 0:02:44]}  cxd4 {[%clk 0:02:57]} 4. Nxd4 {[%clk 0:02:45]}  Nc6 {[%clk 0:02:57]} 5. Nc3 {[%clk 0:02:45]}  a6 {[%clk 0:02:57]} 6. Nb3 {[%clk 0:02:40]}  Nf6 {[%clk 0:02:57]} 7. Bd3 {[%clk 0:02:35]}  Bb4 {[%clk 0:02:56]} 8. O-O {[%clk 0:02:30]}  Ne5 {[%clk 0:02:53]} 9. f4 {[%clk 0:02:19]}  Nxd3 {[%clk 0:02:53]} 10. cxd3 {[%clk 0:02:20]}  O-O {[%clk 0:02:48]} 11. Kh1 {[%clk 0:02:03]}  d5 {[%clk 0:02:45]} 12. e5 {[%clk 0:01:57]}  Nd7 {[%clk 0:02:42]} 13. d4 {[%clk 0:01:57]}  g6 {[%clk 0:02:38]} 14. f5 {[%clk 0:01:51]}  Bxc3 {[%clk 0:02:31]} 15. bxc3 {[%clk 0:01:38]}  exf5 {[%clk 0:02:30]} 16. Bh6 {[%clk 0:01:39]}  Re8 {[%clk 0:02:29]} 17. Qd3 {[%clk 0:01:14]}  Qe7 {[%clk 0:02:18]} 18. Qg3 {[%clk 0:00:59]}  b6 {[%clk 0:02:13]} 19. Rxf5 {[%clk 0:00:38]}  Nf8 {[%clk 0:02:02]} 20. Rf6 {[%clk 0:00:35]}  Ne6 {[%clk 0:01:54]} 21. Raf1 {[%clk 0:00:33]}  Nd8 {[%clk 0:01:46]} 22. Bg5 {[%clk 0:00:27]}  Qf8 {[%clk 0:01:40]} 23. Qh4 {[%clk 0:00:25]}  Be6 {[%clk 0:01:39]} 24. R1f4 {[%clk 0:00:20]}  Qa3 {[%clk 0:01:38]} 25. Qh6 {[%clk 0:00:13]}  Qb2 {[%clk 0:01:37]} 26. Rh4 {[%clk 0:00:10]}  Qb1+ {[%clk 0:01:22]} 27. Nc1 {[%clk 0:00:11]}  Qc2 {[%clk 0:01:05]} 28. Qxh7+ {[%clk 0:00:11]}  Kf8 {[%clk 0:01:04]} 29. Qh8+ {[%clk 0:00:09]}  Ke7 {[%clk 0:01:04]} 30. Rxf7+ {[%clk 0:00:10]}  Kxf7 {[%clk 0:00:54]} 31. Rh7# {[%clk 0:00:11]} 1-0


[Site "https://www.chess.com"]

[Event "Titled Tuesday Blitz March 08 Late 2022"]
[White "Suarez Uriel, Adrian"]
[Black "Maltsevskaya, Aleksandra"]
[WhiteFideId "22230874"]
[BlackFideId "24174041"]
[WhiteElo "2316"]
[BlackElo "2241"]
[Result "0-1"]
[Round "09"]
[TimeControl "180+1"]
[Date "2022.03.08"]
[WhiteClock "0:00:46"]
[BlackClock "0:00:45"]

1. e4 {[%clk 0:02:31]}  c5 {[%clk 0:02:59]} 2. Ne2 {[%clk 0:02:29]}  e6 {[%clk 0:03:00]} 3. d4 {[%clk 0:02:28]}  cxd4 {[%clk 0:03:01]} 4. Nxd4 {[%clk 0:02:29]}  Nf6 {[%clk 0:03:01]} 5. Nc3 {[%clk 0:02:29]}  Nc6 {[%clk 0:03:02]} 6. Ndb5 {[%clk 0:02:23]}  Bc5 {[%clk 0:03:01]} 7. Nd6+ {[%clk 0:02:21]}  Ke7 {[%clk 0:03:02]} 8. Bf4 {[%clk 0:02:15]}  e5 {[%clk 0:03:02]} 9. Nf5+ {[%clk 0:02:15]}  Kf8 {[%clk 0:03:03]} 10. Be3 {[%clk 0:02:15]}  Bxe3 {[%clk 0:03:01]} 11. Nxe3 {[%clk 0:02:15]}  d6 {[%clk 0:02:59]} 12. Bc4 {[%clk 0:02:14]}  g6 {[%clk 0:02:58]} 13. O-O {[%clk 0:02:13]}  Kg7 {[%clk 0:02:58]} 14. Ncd5 {[%clk 0:02:11]}  Nxd5 {[%clk 0:02:53]} 15. Bxd5 {[%clk 0:02:09]}  a6 {[%clk 0:02:22]} 16. c3 {[%clk 0:02:10]}  Ne7 {[%clk 0:02:18]} 17. Bb3 {[%clk 0:02:08]}  b5 {[%clk 0:02:18]} 18. a4 {[%clk 0:02:06]}  Rb8 {[%clk 0:02:17]} 19. axb5 {[%clk 0:02:06]}  axb5 {[%clk 0:02:18]} 20. Ra7 {[%clk 0:02:05]}  Rb7 {[%clk 0:02:18]} 21. Ra6 {[%clk 0:02:01]}  Rd7 {[%clk 0:02:12]} 22. Ra8 {[%clk 0:01:58]}  Qb6 {[%clk 0:02:09]} 23. Nd5 {[%clk 0:01:55]}  Nxd5 {[%clk 0:02:08]} 24. Bxd5 {[%clk 0:01:56]}  Rhd8 {[%clk 0:02:03]} 25. Qb3 {[%clk 0:01:55]}  Bb7 {[%clk 0:01:48]} 26. Rxd8 {[%clk 0:01:54]}  Bxd5 {[%clk 0:01:42]} 27. Qxd5 {[%clk 0:01:53]}  Rxd8 {[%clk 0:01:42]} 28. Ra1 {[%clk 0:01:52]}  b4 {[%clk 0:01:42]} 29. c4 {[%clk 0:01:48]}  b3 {[%clk 0:01:38]} 30. h4 {[%clk 0:01:47]}  h5 {[%clk 0:01:34]} 31. Ra3 {[%clk 0:01:42]}  Rc8 {[%clk 0:01:30]} 32. Qd3 {[%clk 0:01:28]}  Qb4 {[%clk 0:01:21]} 33. Rxb3 {[%clk 0:01:20]}  Qe1+ {[%clk 0:01:21]} 34. Kh2 {[%clk 0:01:19]}  Qxf2 {[%clk 0:01:21]} 35. Kh3 {[%clk 0:01:10]}  Qf4 {[%clk 0:00:47]} 36. g3 {[%clk 0:00:56]}  Qc1 {[%clk 0:00:45]} 37. Kg2 {[%clk 0:00:47]}  Rxc4 {[%clk 0:00:45]} 38. Rc3 {[%clk 0:00:46]}  Qxb2+ {[%clk 0:00:45]} 0-1


[Site "https://www.chess.com"]

[Event "Titled Tuesday Blitz March 08 Late 2022"]
[White "Thavandiran, Shiyam"]
[Black "Keymer, Vincent"]
[WhiteFideId "2605058"]
[BlackFideId "12940690"]
[WhiteElo "2357"]
[BlackElo "2557"]
[Result "0-1"]
[Round "09"]
[TimeControl "180+1"]
[Date "2022.03.08"]
[WhiteClock "0:00:02"]
[BlackClock "0:00:19"]

1. e4 {[%clk 0:02:59]}  c6 {[%clk 0:02:56]} 2. d4 {[%clk 0:02:57]}  d5 {[%clk 0:02:57]} 3. Nd2 {[%clk 0:02:57]}  dxe4 {[%clk 0:02:57]} 4. Nxe4 {[%clk 0:02:58]}  Nf6 {[%clk 0:02:57]} 5. Nxf6+ {[%clk 0:02:58]}  exf6 {[%clk 0:02:58]} 6. c3 {[%clk 0:02:58]}  Bd6 {[%clk 0:02:58]} 7. Bd3 {[%clk 0:02:59]}  O-O {[%clk 0:02:58]} 8. Qc2 {[%clk 0:02:59]}  Re8+ {[%clk 0:02:59]} 9. Ne2 {[%clk 0:02:59]}  h5 {[%clk 0:03:00]} 10. O-O {[%clk 0:02:59]}  h4 {[%clk 0:02:59]} 11. Nf4 {[%clk 0:02:59]}  Nd7 {[%clk 0:02:57]} 12. Qd1 {[%clk 0:02:58]}  Nf8 {[%clk 0:02:55]} 13. Qh5 {[%clk 0:02:57]}  Bxf4 {[%clk 0:02:55]} 14. Bxf4 {[%clk 0:02:56]}  h3 {[%clk 0:02:55]} 15. gxh3 {[%clk 0:02:35]}  Qd7 {[%clk 0:02:21]} 16. Rfe1 {[%clk 0:02:06]}  Qxh3 {[%clk 0:02:20]} 17. Qxh3 {[%clk 0:01:39]}  Bxh3 {[%clk 0:02:20]} 18. f3 {[%clk 0:01:40]}  Rxe1+ {[%clk 0:02:09]} 19. Rxe1 {[%clk 0:01:39]}  Be6 {[%clk 0:02:10]} 20. a4 {[%clk 0:01:19]}  Rd8 {[%clk 0:02:09]} 21. Bc2 {[%clk 0:01:12]}  Rd5 {[%clk 0:02:04]} 22. Kf2 {[%clk 0:01:11]}  a6 {[%clk 0:01:59]} 23. b4 {[%clk 0:01:04]}  Rh5 {[%clk 0:01:56]} 24. Bd3 {[%clk 0:00:54]}  Nd7 {[%clk 0:01:35]} 25. a5 {[%clk 0:00:51]}  Nf8 {[%clk 0:01:26]} 26. Bd6 {[%clk 0:00:40]}  g6 {[%clk 0:01:16]} 27. Bxf8 {[%clk 0:00:13]}  Kxf8 {[%clk 0:01:17]} 28. Bxg6 {[%clk 0:00:14]}  Rxh2+ {[%clk 0:01:16]} 29. Kg3 {[%clk 0:00:14]}  Rb2 {[%clk 0:01:08]} 30. Bd3 {[%clk 0:00:13]}  Ke7 {[%clk 0:01:04]} 31. Kf4 {[%clk 0:00:12]}  Kd6 {[%clk 0:01:01]} 32. Re2 {[%clk 0:00:09]}  Rb3 {[%clk 0:00:59]} 33. Rc2 {[%clk 0:00:09]}  Ra3 {[%clk 0:00:59]} 34. Ke3 {[%clk 0:00:09]}  Ra1 {[%clk 0:00:57]} 35. Kd2 {[%clk 0:00:09]}  Bb3 {[%clk 0:00:52]} 36. Rb2 {[%clk 0:00:08]}  Bd5 {[%clk 0:00:52]} 37. Be4 {[%clk 0:00:07]}  Rh1 {[%clk 0:00:44]} 38. Kd3 {[%clk 0:00:07]}  Rh3 {[%clk 0:00:39]} 39. c4 {[%clk 0:00:06]}  Be6 {[%clk 0:00:37]} 40. Ke3 {[%clk 0:00:06]}  Bxc4 {[%clk 0:00:35]} 41. Rg2 {[%clk 0:00:06]}  Be6 {[%clk 0:00:31]} 42. Rg8 {[%clk 0:00:06]}  f5 {[%clk 0:00:31]} 43. Bd3 {[%clk 0:00:06]}  Rh2 {[%clk 0:00:25]} 44. Rb8 {[%clk 0:00:05]}  Kc7 {[%clk 0:00:24]} 45. Re8 {[%clk 0:00:05]}  Rb2 {[%clk 0:00:24]} 46. Re7+ {[%clk 0:00:05]}  Kc8 {[%clk 0:00:24]} 47. d5 {[%clk 0:00:03]}  cxd5 {[%clk 0:00:23]} 48. Kd4 {[%clk 0:00:03]}  Rxb4+ {[%clk 0:00:20]} 49. Kc5 {[%clk 0:00:03]}  Rb3 {[%clk 0:00:21]} 50. Kd6 {[%clk 0:00:04]}  Kb8 {[%clk 0:00:20]} 51. Bc2 {[%clk 0:00:02]}  Rxf3 {[%clk 0:00:19]} 52. Kc5 {[%clk 0:00:02]}  Rc3+ {[%clk 0:00:19]} 0-1


[Site "https://www.chess.com"]

[Event "Titled Tuesday Blitz March 08 Late 2022"]
[White "Vargas Pereda, Jesus Manue"]
[Black "Desideri, Ricardo Maruchi"]
[WhiteFideId "5115710"]
[BlackFideId "2110440"]
[WhiteElo "1774"]
[BlackElo "1945"]
[Result "1-0"]
[Round "09"]
[TimeControl "180+1"]
[Date "2022.03.09"]
[WhiteClock "0:00:59"]
[BlackClock "0:00:01"]

1. d4 {[%clk 0:03:00]}  Nf6 {[%clk 0:02:57]} 2. Bf4 {[%clk 0:03:00]}  d6 {[%clk 0:02:55]} 3. Nc3 {[%clk 0:02:59]}  g6 {[%clk 0:02:55]} 4. e4 {[%clk 0:02:59]}  c6 {[%clk 0:02:53]} 5. Qd2 {[%clk 0:02:59]}  Bg7 {[%clk 0:02:53]} 6. Bh6 {[%clk 0:02:57]}  O-O {[%clk 0:02:53]} 7. O-O-O {[%clk 0:02:56]}  b5 {[%clk 0:02:48]} 8. f3 {[%clk 0:02:51]}  Re8 {[%clk 0:02:37]} 9. h4 {[%clk 0:02:50]}  Bh8 {[%clk 0:02:37]} 10. g4 {[%clk 0:02:48]}  Bb7 {[%clk 0:02:13]} 11. Kb1 {[%clk 0:02:46]}  Nbd7 {[%clk 0:02:10]} 12. h5 {[%clk 0:02:45]}  a5 {[%clk 0:01:52]} 13. hxg6 {[%clk 0:02:44]}  hxg6 {[%clk 0:01:52]} 14. Bg5 {[%clk 0:02:35]}  Bg7 {[%clk 0:01:49]} 15. Bd3 {[%clk 0:02:33]}  e5 {[%clk 0:01:46]} 16. d5 {[%clk 0:02:24]}  b4 {[%clk 0:01:30]} 17. Na4 {[%clk 0:02:04]}  cxd5 {[%clk 0:01:28]} 18. exd5 {[%clk 0:02:01]}  Bxd5 {[%clk 0:01:23]} 19. Qh2 {[%clk 0:02:01]}  Qc7 {[%clk 0:01:07]} 20. Bh6 {[%clk 0:02:00]}  Bh8 {[%clk 0:00:15]} 21. Bf8 {[%clk 0:01:58]}  Kxf8 {[%clk 0:00:14]} 22. Qxh8+ {[%clk 0:01:57]}  Ke7 {[%clk 0:00:14]} 23. Qh4 {[%clk 0:01:52]}  Rh8 {[%clk 0:00:14]} 24. Qxh8 {[%clk 0:01:48]}  Rxh8 {[%clk 0:00:14]} 25. Rxh8 {[%clk 0:01:49]}  Nc5 {[%clk 0:00:14]} 26. Nxc5 {[%clk 0:01:48]}  Qxc5 {[%clk 0:00:13]} 27. Ne2 {[%clk 0:01:46]}  Bxf3 {[%clk 0:00:12]} 28. Re1 {[%clk 0:01:38]}  Bxe2 {[%clk 0:00:11]} 29. Rxe2 {[%clk 0:01:38]}  Nxg4 {[%clk 0:00:12]} 30. b3 {[%clk 0:01:32]}  Qg1+ {[%clk 0:00:11]} 31. Kb2 {[%clk 0:01:32]}  Qd4+ {[%clk 0:00:11]} 32. Kc1 {[%clk 0:01:31]}  Qg1+ {[%clk 0:00:11]} 33. Kd2 {[%clk 0:01:31]}  Nf6 {[%clk 0:00:10]} 34. Rhh2 {[%clk 0:01:30]}  Qg5+ {[%clk 0:00:09]} 35. Kd1 {[%clk 0:01:28]}  d5 {[%clk 0:00:09]} 36. Rhg2 {[%clk 0:01:27]}  Qf5 {[%clk 0:00:08]} 37. Bxf5 {[%clk 0:01:27]}  gxf5 {[%clk 0:00:09]} 38. Rg7 {[%clk 0:01:26]}  e4 {[%clk 0:00:08]} 39. Rg5 {[%clk 0:01:24]}  Ke6 {[%clk 0:00:07]} 40. Kc1 {[%clk 0:01:21]}  f4 {[%clk 0:00:07]} 41. c4 {[%clk 0:01:20]}  f3 {[%clk 0:00:07]} 42. Re1 {[%clk 0:01:19]}  d4 {[%clk 0:00:07]} 43. c5 {[%clk 0:01:18]}  e3 {[%clk 0:00:07]} 44. Rgg1 {[%clk 0:01:17]}  f2 {[%clk 0:00:07]} 45. c6 {[%clk 0:01:17]}  fxe1=Q+ {[%clk 0:00:06]} 46. Rxe1 {[%clk 0:01:17]}  Kd6 {[%clk 0:00:06]} 47. Rd1 {[%clk 0:01:16]}  Kxc6 {[%clk 0:00:06]} 48. Rxd4 {[%clk 0:01:16]}  e2 {[%clk 0:00:06]} 49. Kd2 {[%clk 0:01:16]}  Kc5 {[%clk 0:00:05]} 50. Rc4+ {[%clk 0:01:16]}  Kd5 {[%clk 0:00:05]} 51. Kxe2 {[%clk 0:01:17]}  Ne4 {[%clk 0:00:05]} 52. Rc8 {[%clk 0:01:13]}  Nc3+ {[%clk 0:00:05]} 53. Kd2 {[%clk 0:01:12]}  Nxa2 {[%clk 0:00:05]} 54. Rf8 {[%clk 0:01:11]}  Nc3 {[%clk 0:00:04]} 55. Rxf7 {[%clk 0:01:11]}  Kc5 {[%clk 0:00:04]} 56. Rf5+ {[%clk 0:01:11]}  Kb6 {[%clk 0:00:04]} 57. Rf6+ {[%clk 0:01:12]}  Kc5 {[%clk 0:00:03]} 58. Rf5+ {[%clk 0:01:12]}  Kb6 {[%clk 0:00:03]} 59. Kc2 {[%clk 0:01:12]}  Kc6 {[%clk 0:00:03]} 60. Rh5 {[%clk 0:01:11]}  Kb6 {[%clk 0:00:03]} 61. Kd3 {[%clk 0:01:10]}  Nb5 {[%clk 0:00:04]} 62. Kc4 {[%clk 0:01:10]}  Na3+ {[%clk 0:00:04]} 63. Kd4 {[%clk 0:01:09]}  Nc2+ {[%clk 0:00:04]} 64. Kc4 {[%clk 0:01:09]}  Na3+ {[%clk 0:00:04]} 65. Kd3 {[%clk 0:01:09]}  Nb1 {[%clk 0:00:04]} 66. Rh1 {[%clk 0:01:08]}  Na3 {[%clk 0:00:04]} 67. Rh6+ {[%clk 0:01:08]}  Kb5 {[%clk 0:00:04]} 68. Rh5+ {[%clk 0:01:08]}  Kb6 {[%clk 0:00:04]} 69. Ke4 {[%clk 0:01:07]}  Kc6 {[%clk 0:00:03]} 70. Rxa5 {[%clk 0:01:05]}  Nb5 {[%clk 0:00:03]} 71. Ra8 {[%clk 0:01:03]}  Nc3+ {[%clk 0:00:03]} 72. Kd3 {[%clk 0:01:03]}  Nb5 {[%clk 0:00:03]} 73. Rh8 {[%clk 0:01:02]}  Nd6 {[%clk 0:00:03]} 74. Rh6 {[%clk 0:01:01]}  Kd5 {[%clk 0:00:03]} 75. Rxd6+ {[%clk 0:00:59]}  Kxd6 {[%clk 0:00:03]} 76. Kd4 {[%clk 0:00:59]}  Kc6 {[%clk 0:00:03]} 77. Kc4 {[%clk 0:00:59]}  Kc7 {[%clk 0:00:02]} 78. Kb5 {[%clk 0:00:58]}  Kb7 {[%clk 0:00:01]} 79. Kc5 {[%clk 0:00:58]}  Kc7 {[%clk 0:00:01]} 80. Kxb4 {[%clk 0:00:58]}  Kb6 {[%clk 0:00:01]} 81. Kc4 {[%clk 0:00:59]}  Kc6 {[%clk 0:00:01]} 82. Kb4 {[%clk 0:00:59]}  Kb6 {[%clk 0:00:01]} 83. Kc4 {[%clk 0:00:59]}  Kc6 {[%clk 0:00:01]} 84. b4 {[%clk 0:01:00]}  Kc7 {[%clk 0:00:01]} 85. Kc5 {[%clk 0:00:59]}  Kb8 {[%clk 0:00:01]} 86. Kb6 {[%clk 0:00:59]} 1-0


[Site "https://www.chess.com"]

[Event "Titled Tuesday Blitz March 08 Late 2022"]
[White "Vusatiuk, Vladimir"]
[Black "Estrada Nieto, Julian"]
[WhiteFideId "14118610"]
[BlackFideId "5101018"]
[WhiteElo "2157"]
[BlackElo "2246"]
[Result "0-1"]
[Round "09"]
[TimeControl "180+1"]
[Date "2022.03.08"]
[WhiteClock "0:00:01"]
[BlackClock "0:00:41"]

1. d4 {[%clk 0:03:00]}  d5 {[%clk 0:03:00]} 2. c4 {[%clk 0:03:00]}  dxc4 {[%clk 0:03:00]} 3. Nf3 {[%clk 0:03:00]}  Nf6 {[%clk 0:03:00]} 4. e3 {[%clk 0:03:01]}  e6 {[%clk 0:03:00]} 5. Bxc4 {[%clk 0:03:01]}  c5 {[%clk 0:03:01]} 6. O-O {[%clk 0:03:01]}  a6 {[%clk 0:03:01]} 7. b3 {[%clk 0:03:02]}  Nc6 {[%clk 0:02:58]} 8. Bb2 {[%clk 0:02:56]}  Bd7 {[%clk 0:02:58]} 9. Nbd2 {[%clk 0:02:49]}  cxd4 {[%clk 0:02:56]} 10. Nxd4 {[%clk 0:02:49]}  Nxd4 {[%clk 0:02:52]} 11. Bxd4 {[%clk 0:02:50]}  Be7 {[%clk 0:02:46]} 12. Be2 {[%clk 0:02:30]}  Bb5 {[%clk 0:02:39]} 13. Nc4 {[%clk 0:02:01]}  O-O {[%clk 0:02:37]} 14. a4 {[%clk 0:02:00]}  Bc6 {[%clk 0:02:36]} 15. Nb6 {[%clk 0:01:56]}  Rb8 {[%clk 0:02:32]} 16. a5 {[%clk 0:01:49]}  Nd7 {[%clk 0:02:30]} 17. Qc2 {[%clk 0:01:40]}  Bf6 {[%clk 0:02:13]} 18. Rad1 {[%clk 0:01:27]}  Bxd4 {[%clk 0:02:09]} 19. Rxd4 {[%clk 0:01:28]}  Qg5 {[%clk 0:02:03]} 20. g3 {[%clk 0:00:51]}  Nxb6 {[%clk 0:02:02]} 21. axb6 {[%clk 0:00:52]}  Qa5 {[%clk 0:01:47]} 22. Rg4 {[%clk 0:00:42]}  Qxb6 {[%clk 0:01:41]} 23. Qc3 {[%clk 0:00:35]}  g6 {[%clk 0:01:40]} 24. Qf6 {[%clk 0:00:16]}  Qd8 {[%clk 0:01:31]} 25. Qe5 {[%clk 0:00:14]}  Qd5 {[%clk 0:01:29]} 26. Qxd5 {[%clk 0:00:13]}  Bxd5 {[%clk 0:01:29]} 27. b4 {[%clk 0:00:13]}  Rfc8 {[%clk 0:01:23]} 28. Rd4 {[%clk 0:00:10]}  Rc2 {[%clk 0:01:21]} 29. Bd3 {[%clk 0:00:11]}  Rd2 {[%clk 0:01:19]} 30. Ra1 {[%clk 0:00:10]}  Rc8 {[%clk 0:01:17]} 31. h4 {[%clk 0:00:08]}  Rc3 {[%clk 0:01:16]} 32. Bf1 {[%clk 0:00:06]}  Rxd4 {[%clk 0:01:15]} 33. exd4 {[%clk 0:00:06]}  Bc4 {[%clk 0:01:15]} 34. Rb1 {[%clk 0:00:03]}  Bxf1 {[%clk 0:01:13]} 35. Kxf1 {[%clk 0:00:04]}  Rc4 {[%clk 0:01:06]} 36. b5 {[%clk 0:00:04]}  Rxd4 {[%clk 0:01:04]} 37. bxa6 {[%clk 0:00:04]}  bxa6 {[%clk 0:01:04]} 38. Rb8+ {[%clk 0:00:03]}  Kg7 {[%clk 0:01:05]} 39. Ra8 {[%clk 0:00:04]}  Ra4 {[%clk 0:01:05]} 40. Ke2 {[%clk 0:00:05]}  Ra2+ {[%clk 0:01:05]} 41. Kf3 {[%clk 0:00:05]}  a5 {[%clk 0:01:05]} 42. Ra7 {[%clk 0:00:06]}  h5 {[%clk 0:01:04]} 43. Ra6 {[%clk 0:00:06]}  a4 {[%clk 0:01:04]} 44. Ra5 {[%clk 0:00:06]}  a3 {[%clk 0:01:04]} 45. Kg2 {[%clk 0:00:07]}  Kf6 {[%clk 0:01:04]} 46. Kf3 {[%clk 0:00:08]}  Ra1 {[%clk 0:01:03]} 47. Ke3 {[%clk 0:00:08]}  Ke7 {[%clk 0:01:02]} 48. Kf4 {[%clk 0:00:08]}  Kf6 {[%clk 0:00:58]} 49. Ra6 {[%clk 0:00:05]}  Rf1 {[%clk 0:00:53]} 50. Kf3 {[%clk 0:00:04]}  Ra1 {[%clk 0:00:53]} 51. Kf4 {[%clk 0:00:05]}  a2 {[%clk 0:00:52]} 52. f3 {[%clk 0:00:04]}  Kg7 {[%clk 0:00:47]} 53. Ra7 {[%clk 0:00:02]}  e5+ {[%clk 0:00:43]} 54. Kg5 {[%clk 0:00:02]}  Rf1 {[%clk 0:00:42]} 55. Rxa2 {[%clk 0:00:01]}  Rxf3 {[%clk 0:00:42]} 56. g4 {[%clk 0:00:01]}  f6# {[%clk 0:00:41]} 0-1


[Site "https://www.chess.com"]

[Event "Titled Tuesday Blitz March 08 Late 2022"]
[White "Zhurbinsky, David"]
[Black "Miszler, Levente"]
[WhiteFideId "2072904"]
[BlackFideId "763276"]
[WhiteElo "2523"]
[BlackElo "1966"]
[Result "1-0"]
[Round "09"]
[TimeControl "180+1"]
[Date "2022.03.09"]
[WhiteClock "0:02:09"]
[BlackClock "0:02:03"]

1. e4 {[%clk 0:03:00]}  e6 {[%clk 0:02:58]} 2. d4 {[%clk 0:02:59]}  d5 {[%clk 0:02:58]} 3. Nc3 {[%clk 0:03:00]}  Nf6 {[%clk 0:02:58]} 4. e5 {[%clk 0:03:00]}  Nfd7 {[%clk 0:02:58]} 5. f4 {[%clk 0:03:01]}  c5 {[%clk 0:02:59]} 6. Nf3 {[%clk 0:03:02]}  Nc6 {[%clk 0:02:59]} 7. Ne2 {[%clk 0:03:03]}  cxd4 {[%clk 0:02:57]} 8. Nexd4 {[%clk 0:03:04]}  Qb6 {[%clk 0:02:48]} 9. c3 {[%clk 0:03:04]}  Be7 {[%clk 0:02:43]} 10. Bd3 {[%clk 0:03:01]}  O-O {[%clk 0:02:42]} 11. Qc2 {[%clk 0:02:56]}  g6 {[%clk 0:02:35]} 12. O-O {[%clk 0:02:36]}  f6 {[%clk 0:02:34]} 13. Bxg6 {[%clk 0:02:26]}  fxe5 {[%clk 0:02:22]} 14. Bxh7+ {[%clk 0:02:23]}  Kh8 {[%clk 0:02:23]} 15. fxe5 {[%clk 0:02:16]}  Ndxe5 {[%clk 0:02:21]} 16. Bh6 {[%clk 0:02:07]}  Nxf3+ {[%clk 0:02:13]} 17. Rxf3 {[%clk 0:02:07]}  Rxf3 {[%clk 0:02:13]} 18. Bg7+ {[%clk 0:02:08]}  Kxg7 {[%clk 0:02:06]} 19. Qg6+ {[%clk 0:02:08]}  Kh8 {[%clk 0:02:03]} 20. Qg8# {[%clk 0:02:09]} 1-0


[Site "https://www.chess.com"]